bitfinex-derivatives/quotes_ETHF0:USTF0_20241230
["timestamp","ask_amount","ask_price","bid_price","bid_amount"]
[1735593701983,10.58630055,3391.7,3390.3,11.57933925]
[1735593702278,3.50313,3390.9,3390.3,11.57933925]
[1735593702481,3.50313,3390.9,3390.4,41.09537]
[1735593702682,0.29535,3390.7,3390.6,6.94760355]
[1735593703874,0.29536,3390.5,3390.4,41.09537]
[1735593704178,3.50316,3390.5,3390.4,41.09537]
[1735593704377,3.50316,3390.5,3390.4,40.8]
[1735593704774,0.29541,3390.0,3389.9,1.1938]
[1735593705175,0.29541,3390.0,3389.9,0.6052]
[1735593705377,0.29541,3390.0,3389.9,41.4052]
[1735593709977,0.29541,3390.0,3389.9,40.8]
[1735593710177,0.29545,3389.5,3389.4,0.29545]
[1735593710385,3.50325,3389.5,3389.4,0.29545]
[1735593710582,3.50325,3389.5,3389.0,0.29549]
[1735593710583,0.29549,3389.1,3389.0,0.29549]
[1735593710783,3.50329,3389.1,3389.0,0.89899]
[1735593710984,3.2078,3389.1,3389.0,0.89899]
[1735593711187,3.2078,3389.1,3389.0,41.69899]
[1735593712186,3.2078,3389.1,3389.0,42.88499]
[1735593715686,3.50329,3389.1,3389.0,42.88499]
[1735593717186,3.2078,3389.1,3389.0,42.88499]
[1735593717490,3.50329,3389.1,3389.0,42.88499]
[1735593718783,3.2078,3389.1,3389.0,42.88499]
[1735593718991,3.2078,3389.1,3389.0,42.88999]
[1735593720990,3.2078,3389.1,3389.0,40.8]
[1735593721188,3.2078,3389.1,3387.8,1.47799]
[1735593721189,0.73874,3389.0,3388.3,0.5868]
[1735593721386,0.29555,3388.4,3388.3,1.48765]
[1735593721603,0.29558,3388.1,3388.0,0.29558]
[1735593721892,3.50338,3388.1,3387.7,4.62020795]
[1735593722099,3.50338,3388.1,3387.6,1.7963]
[1735593722100,3.50338,3388.1,3388.0,0.29558]
[1735593723197,3.2078,3388.1,3387.6,1.7963]
[1735593723390,0.29558,3388.0,3387.9,0.29559]
[1735593723591,3.50338,3388.1,3387.7,0.29561]
[1735593723894,3.2078,3388.5,3388.0,2.37850055]
[1735593724088,3.2078,3388.5,3387.8,1.192]
[1735593724089,3.2078,3388.5,3388.4,0.29555]
[1735593724292,0.29555,3388.4,3388.0,2.37850055]
[1735593724495,0.29555,3388.4,3388.3,41.09556]
[1735593724795,0.29555,3388.4,3388.3,40.8]
[1735593724991,0.29559,3387.9,3387.8,0.29559]
[1735593725190,3.2078,3388.1,3387.6,1.7973]
[1735593725387,3.2078,3387.7,3387.6,0.29561]
[1735593725989,3.2078,3387.7,3387.6,41.09561]
[1735593726185,3.2078,3387.7,3387.6,40.8]
[1735593726398,3.2078,3387.7,3387.6,41.09562]
[1735593726889,3.2078,3388.3,3388.2,0.29556]
[1735593727490,3.2078,3388.3,3388.2,41.09556]
[1735593727696,3.50336,3388.3,3388.2,0.29556]
[1735593728194,0.29557,3388.2,3388.1,0.29557]
[1735593730095,3.2078,3388.3,3387.7,1.192]
[1735593730299,3.2078,3387.8,3387.1,1.192]
[1735593730493,3.2078,3387.8,3387.7,0.29561]
[1735593730896,3.2078,3388.2,3388.1,0.29557]
[1735593731200,3.2078,3388.2,3387.7,0.73903]
[1735593731201,0.29557,3388.1,3388.0,0.29558]
[1735593732297,3.2078,3388.2,3387.8,1.7695]
[1735593732502,0.29558,3388.1,3388.0,0.29557]
[1735593733002,0.29558,3388.1,3388.0,41.09557]
[1735593733301,0.29558,3388.1,3388.0,40.8]
[1735593733700,0.29558,3388.1,3388.0,41.09558]
[1735593734100,3.2078,3388.2,3388.1,0.29557]
[1735593734304,3.50336,3388.2,3388.1,0.29557]
[1735593734498,0.6257,3388.5,3388.4,0.29555]
[1735593735203,3.2078,3388.7,3388.6,0.29553]
[1735593736002,3.50332,3388.7,3388.6,0.29553]
[1735593736393,3.2078,3388.7,3388.6,0.29553]
[1735593739208,3.50332,3388.7,3388.6,0.29553]
[1735593740908,3.2078,3388.7,3388.6,0.29553]
[1735593741207,3.50332,3388.7,3388.6,0.29553]
[1735593742102,0.29557,3388.1,3388.0,0.29558]
[1735593742299,3.2078,3388.1,3387.6,1.7822]
[1735593742501,3.2078,3388.1,3387.9,0.29559]
[1735593742502,0.89319,3388.0,3387.9,0.29559]
[1735593742701,1.47979,3388.0,3387.9,0.29559]
[1735593743805,1.47979,3388.0,3387.7,40.8]
[1735593743806,1.1842,3388.0,3387.7,40.8]
[1735593744121,0.29564,3387.4,3387.3,0.29564]
[1735593744313,3.50344,3387.4,3387.3,0.29564]
[1735593744612,5.58630055,3387.4,3386.1,0.73937]
[1735593744807,3.2078,3386.5,3386.4,0.29572]
[1735593745411,3.2078,3386.5,3386.4,41.09572]
[1735593748818,0.29576,3386.0,3385.5,0.2958]
[1735593749018,0.29576,3386.0,3385.3,2.37850055]
[1735593749019,3.2078,3385.8,3385.7,0.29578]
[1735593749213,3.2078,3385.8,3385.7,41.09578]
[1735593749611,3.2078,3385.8,3385.7,0.29578]
[1735593750215,3.2078,3385.8,3385.5,0.2958]
[1735593750420,3.2078,3385.8,3385.7,0.29578]
[1735593751309,3.2078,3385.8,3385.6,0.29578]
[1735593751310,3.50358,3385.8,3385.6,0.29578]
[1735593751511,3.50358,3385.8,3385.7,0.29578]
[1735593751512,3.2078,3385.8,3385.7,0.29578]
[1735593751918,0.29589,3384.6,3384.3,3.98479187]
[1735593752119,5.88220055,3384.4,3384.3,3.98479187]
[1735593752316,3.2078,3384.4,3384.3,3.98479187]
[1735593752518,3.2078,3384.4,3384.1,0.29592]
[1735593752720,3.2078,3384.4,3384.0,6.94760355]
[1735593753017,3.2078,3384.4,3384.3,0.29591]
[1735593753418,3.2078,3384.4,3384.2,0.29591]
[1735593753711,3.2078,3384.4,3384.3,0.29591]
[1735593754120,3.2078,3384.4,3384.1,40.8]
[1735593754316,3.2078,3384.4,3384.3,0.29591]
[1735593755422,3.2078,3384.4,3384.3,41.09591]
[1735593756017,3.2078,3384.4,3384.3,42.30391]
[1735593756813,3.2078,3384.4,3384.3,41.09591]
[1735593757118,2.37850055,3385.5,3384.3,42.30391]
[1735593757119,3.2078,3384.9,3384.3,42.30391]
[1735593757319,3.2078,3384.9,3384.8,0.29586]
[1735593757523,3.2078,3384.9,3384.3,40.8]
[1735593757724,3.2078,3384.9,3384.6,0.29587]
[1735593757924,5.88216055,3384.9,3384.5,0.29588]
[1735593758228,0.88726,3384.8,3384.5,0.29588]
[1735593758527,0.88726,3384.8,3384.3,40.8]
[1735593758528,0.5914,3384.8,3384.4,0.2959]
[1735593758716,0.5914,3384.8,3384.6,0.29588]
[1735593759322,0.5914,3384.8,3384.3,40.8]
[1735593759533,0.5914,3384.8,3383.8,2.98970055]
[1735593759534,3.2078,3384.4,3383.8,0.6112]
[1735593759826,3.2078,3384.4,3384.3,0.29591]
[1735593760921,3.2078,3384.4,3383.9,40.8]
[1735593761120,0.5914,3384.8,3383.0,5.72545]
[1735593761121,3.2078,3384.0,3383.0,5.72545]
[1735593761333,0.5936,3383.9,3383.8,0.29594]
[1735593762121,3.2078,3384.0,3383.4,3.11846055]
[1735593762326,3.2078,3384.0,3383.9,0.29594]
[1735593762929,3.2078,3384.0,3383.9,41.09594]
[1735593767031,3.2078,3384.0,3383.9,42.87944]
[1735593767531,0.5725,3384.5,3383.9,42.5835]
[1735593767532,3.2078,3384.4,3383.9,42.5835]
[1735593767726,3.2078,3384.4,3384.3,0.29591]
[1735593769424,3.2078,3384.4,3384.3,2.67441055]
[1735593769731,3.2078,3384.9,3384.8,0.29586]
[1735593771831,3.8056,3385.4,3384.7,1.7987]
[1735593772035,3.8056,3385.4,3385.3,0.29582]
[1735593772036,3.2078,3385.4,3385.3,0.29582]
[1735593772235,3.50358,3385.8,3385.3,40.8]
[1735593772535,3.2078,3385.8,3385.7,0.29578]
[1735593782439,3.8056,3386.2,3386.1,0.29575]
[1735593782843,3.2078,3386.2,3386.1,0.29575]
[1735593784049,3.2078,3386.2,3386.1,2.67425055]
[1735593785145,3.8367,3386.7,3386.1,2.37850055]
[1735593785348,3.8367,3386.7,3386.6,0.2957]
[1735593785542,3.2078,3386.7,3386.6,0.2957]
[1735593786442,3.2078,3386.7,3386.6,41.0957]
[1735593787845,0.6287,3387.0,3386.6,41.0957]
[1735593788047,0.6287,3387.0,3386.9,0.29568]
[1735593788247,3.2078,3387.1,3386.7,1.222]
[1735593788248,3.2078,3387.1,3387.0,0.29567]
[1735593797350,3.2078,3387.1,3387.0,2.67417055]
[1735593797653,3.2078,3387.1,3387.0,3.89617055]
[1735593801450,3.2078,3387.1,3387.0,2.67417055]
[1735593801755,3.2078,3387.1,3387.0,3.89517055]
[1735593802752,3.2078,3387.1,3386.6,41.0957]
[1735593802947,3.50349,3386.7,3386.6,40.8]
[1735593803148,3.50349,3386.7,3385.8,3.60283263]
[1735593803149,0.29575,3386.1,3385.9,0.29576]
[1735593803352,0.73927,3386.6,3385.9,0.29576]
[1735593803353,3.2078,3386.0,3385.9,0.29576]
[1735593803556,3.2078,3386.0,3385.9,41.09576]
[1735593804055,3.2078,3386.0,3385.8,0.00333208]
[1735593804258,0.29576,3385.9,3385.8,0.00333208]
[1735593804450,0.29576,3385.9,3385.2,7.24342355]
[1735593804451,0.29581,3385.5,3385.2,7.24342355]
[1735593804759,3.2078,3385.3,3385.2,0.29582]
[1735593804960,3.2078,3385.3,3384.7,1.222]
[1735593805153,0.29583,3385.2,3385.0,0.29584]
[1735593805453,3.50362,3385.3,3385.0,0.29584]
[1735593805658,3.50362,3385.3,3385.1,0.29583]
[1735593805960,3.50362,3385.3,3384.8,40.8]
[1735593806256,3.2078,3385.3,3385.0,0.29584]
[1735593806457,3.2078,3385.3,3385.1,0.29583]
[1735593807562,0.6042,3385.2,3385.1,0.29583]
[1735593808658,0.90003,3385.2,3384.9,0.29585]
[1735593808863,0.90003,3385.2,3385.0,0.29584]
[1735593809159,0.6042,3385.2,3384.8,40.8]
[1735593809362,3.2078,3384.9,3384.8,40.8]
[1735593809559,3.2078,3384.9,3384.3,0.2959]
[1735593809560,0.29589,3384.6,3384.3,0.2959]
[1735593809860,3.2078,3384.4,3384.3,0.2959]
[1735593810163,3.2078,3384.4,3384.3,41.0959]
[1735593816167,3.2078,3384.8,3384.7,0.29587]
[1735593816761,3.2078,3384.8,3384.7,41.09587]
[1735593817871,3.2078,3384.8,3384.7,42.30487]
[1735593824271,3.2078,3385.3,3384.8,0.29586]
[1735593824575,3.2078,3385.3,3385.2,0.29583]
[1735593826568,0.29586,3384.9,3384.8,0.29586]
[1735593826771,3.50365,3384.9,3384.8,0.29586]
[1735593827072,3.50365,3384.9,3384.4,0.5711]
[1735593827073,0.29587,3384.7,3384.6,0.29587]
[1735593827272,3.2078,3384.9,3384.2,1.209]
[1735593827471,0.29589,3384.5,3384.4,0.29589]
[1735593827667,3.2078,3384.5,3384.2,1.209]
[1735593827972,3.2078,3384.5,3384.2,42.009]
[1735593828277,3.2078,3384.5,3384.2,40.8]
[1735593828476,3.50369,3384.5,3384.3,0.2959]
[1735593828774,3.2078,3384.5,3384.4,0.2959]
[1735593833378,3.2078,3385.0,3384.9,0.29585]
[1735593836282,3.2078,3385.0,3384.9,41.09585]
[1735593841580,3.2078,3385.0,3384.9,42.30185]
[1735593847984,3.8064,3385.7,3385.6,0.29579]
[1735593848188,6.09711566,3385.7,3385.6,2.67429055]
[1735593848389,5.49851566,3385.7,3385.6,2.67429055]
[1735593850091,3.2078,3385.7,3385.6,2.67429055]
[1735593852991,5.49851566,3385.8,3385.6,2.37850055]
[1735593853192,5.49851566,3385.8,3385.7,1.50078]
[1735593856588,3.2078,3385.8,3385.7,42.30078]
[1735593858387,2.29071566,3386.1,3385.7,42.005]
[1735593858588,2.29071566,3386.1,3386.0,0.29576]
[1735593858986,2.29071566,3386.1,3386.0,0.93136]
[1735593859395,2.29071566,3386.1,3386.0,41.73136]
[1735593860585,5.49851566,3386.3,3386.2,0.29574]
[1735593860783,2.29071566,3386.3,3386.2,2.67424055]
[1735593861394,2.29071566,3386.3,3386.2,43.47424055]
[1735593861992,2.29071566,3386.3,3386.2,41.09574]
[1735593862192,0.6149,3386.3,3386.2,0.29574]
[1735593865194,0.6149,3386.3,3386.2,2.67424055]
[1735593865696,2.29071566,3386.5,3386.4,0.29572]
[1735593865895,6.63280532,3386.7,3386.6,0.2957]
[1735593865896,3.2078,3386.7,3386.6,0.2957]
[1735593866095,3.2078,3386.7,3386.6,3.86420055]
[1735593866295,3.2078,3386.7,3386.6,44.66420055]
[1735593868496,0.6183,3387.0,3386.6,44.66420055]
[1735593868700,0.6183,3387.0,3386.9,0.29568]
[1735593868895,0.29568,3386.9,3386.6,1.19]
[1735593869201,3.50349,3386.7,3386.6,1.19]
[1735593869406,3.2078,3386.7,3386.6,1.19]
[1735593869901,3.2078,3386.7,3386.0,40.8]
[1735593870214,3.2078,3386.3,3386.2,0.29573]
[1735593870502,0.6013,3386.6,3386.0,41.99]
[1735593870703,3.2078,3386.3,3386.1,0.29575]
[1735593870897,3.2078,3386.3,3386.0,41.99]
[1735593870898,3.2078,3386.3,3386.2,0.29574]
[1735593873004,3.2078,3386.3,3385.2,1.19]
[1735593873005,0.73935,3386.2,3385.2,1.19]
[1735593873219,3.2078,3385.5,3385.4,0.29581]
[1735593873401,3.2078,3385.5,3385.4,41.09581]
[1735593874408,3.2078,3385.5,3385.4,42.28581]
[1735593874807,2.29071566,3385.7,3385.6,0.29579]
[1735593875500,2.29071566,3385.7,3385.6,0.90919]
[1735593876110,6.63280532,3385.9,3385.8,0.29577]
[1735593876111,3.2078,3385.9,3385.8,0.29577]
[1735593876608,3.2078,3385.9,3385.8,41.09577]
[1735593881507,3.2078,3385.9,3385.8,40.8]
[1735593881701,3.2078,3385.9,3385.8,41.09577]
[1735593882802,3.2078,3385.9,3385.0,3.2078]
[1735593883110,3.2078,3385.1,3385.0,0.29584]
[1735593883411,3.2078,3385.5,3385.0,40.8]
[1735593883605,3.2078,3385.5,3385.1,0.29583]
[1735593883606,3.2078,3385.2,3385.1,0.29583]
[1735593884902,3.2078,3385.2,3384.2,4.62888081]
[1735593885097,4.66921621,3385.3,3384.4,0.2959]
[1735593885098,3.2078,3384.5,3384.4,0.2959]
[1735593885406,3.2078,3384.9,3384.8,0.29586]
[1735593885602,3.2078,3384.9,3384.8,3.86436055]
[1735593886207,5.49851566,3384.9,3384.8,3.86436055]
[1735593887204,5.49851566,3384.9,3384.8,1.48586]
[1735593887712,3.2078,3384.9,3384.8,1.48586]
[1735593887905,3.2078,3384.9,3384.8,0.29586]
[1735593888105,3.2078,3384.9,3384.8,1.48586]
[1735593889019,3.2078,3384.9,3384.8,42.28586]
[1735593890710,3.2078,3384.9,3384.8,44.66436055]
[1735593893015,2.58654566,3385.2,3384.8,44.66436055]
[1735593893317,2.29071566,3385.1,3384.8,44.66436055]
[1735593893819,2.29071566,3385.1,3384.9,0.29585]
[1735593894514,5.79434566,3385.2,3384.9,0.29585]
[1735593894715,5.49851566,3385.2,3384.9,0.29585]
[1735593896617,5.49851566,3385.2,3384.8,44.36850055]
[1735593896814,5.49851566,3385.2,3385.0,0.29584]
[1735593897212,5.49851566,3385.2,3384.8,44.36850055]
[1735593897411,5.49851566,3385.2,3385.0,0.29584]
[1735593898317,5.49851566,3385.2,3384.8,44.36850055]
[1735593898524,3.2078,3385.2,3385.1,0.29583]
[1735593902931,3.23192566,3385.4,3385.3,0.29582]
[1735593902932,2.29071566,3385.4,3385.3,0.29582]
[1735593903635,2.29071566,3385.4,3385.3,0.94642]
[1735593903935,3.2078,3386.1,3385.7,0.29578]
[1735593903936,2.29071566,3385.8,3385.7,0.29578]
[1735593904136,2.29071566,3385.8,3385.7,3.88928055]
[1735593905531,3.2078,3386.1,3386.0,0.29576]
[1735593905731,3.2078,3386.1,3386.0,2.67426055]
[1735593906230,3.2078,3386.1,3386.0,43.47426055]
[1735593912450,3.2078,3386.2,3386.0,43.17850055]
[1735593912650,3.2078,3386.2,3386.1,0.90545]
[1735593912968,2.29071566,3386.4,3386.3,0.29573]
[1735593913655,4.03050532,3386.6,3386.1,0.6097]
[1735593913656,2.29071566,3386.5,3386.1,0.6097]
[1735593913957,2.29071566,3386.5,3386.4,0.29572]
[1735593915349,2.29071566,3386.6,3386.5,0.29571]
[1735593915657,2.29071566,3386.6,3386.5,1.50971]
[1735593916746,2.29071566,3386.8,3386.7,0.29569]
[1735593916955,2.29071566,3386.8,3386.6,0.2957]
[1735593917150,3.2078,3386.7,3386.5,1.214]
[1735593917646,0.587,3386.6,3386.5,1.214]
[1735593918642,0.587,3386.6,3386.5,1.50971]
[1735593919744,2.87771566,3386.6,3386.5,1.50971]
[1735593920541,0.587,3386.6,3386.5,1.50971]
[1735593921043,0.587,3386.6,3386.5,0.29571]
[1735593922035,3.2078,3386.7,3386.6,0.2957]
[1735593922236,3.2078,3386.7,3386.6,2.67420055]
[1735593929166,1.1987,3387.0,3386.6,2.37850055]
[1735593929470,1.1987,3387.0,3386.8,0.29568]
[1735593929663,1.1987,3387.0,3386.6,2.37850055]
[1735593929868,1.1987,3387.0,3386.9,0.29568]
[1735593930222,1.1987,3387.0,3386.2,0.5909]
[1735593930372,0.29574,3386.2,3385.8,0.29577]
[1735593930665,3.2078,3385.9,3385.7,0.29577]
[1735593931068,3.50357,3385.9,3385.7,0.29577]
[1735593931258,3.50357,3385.9,3385.6,43.47428055]
[1735593931463,3.50357,3385.9,3385.6,3.87129055]
[1735593931963,3.50357,3385.9,3385.7,0.29578]
[1735593932568,3.50357,3385.9,3385.6,2.37850055]
[1735593932765,3.50357,3385.9,3385.7,0.29578]
[1735593933459,3.50357,3385.9,3385.6,2.37850055]
[1735593933673,8.2078,3385.9,3384.6,0.73969]
[1735593933875,8.2078,3385.9,3384.7,2.37850055]
[1735593933876,3.2078,3385.1,3384.7,2.37850055]
[1735593934063,0.29587,3384.7,3384.4,7.00738136]
[1735593934370,0.29587,3384.7,3384.4,47.80738136]
[1735593934763,3.2078,3384.8,3384.4,43.17850055]
[1735593934961,0.29587,3384.7,3384.4,43.17850055]
[1735593935176,3.2078,3384.8,3384.4,43.17850055]
[1735593935454,0.29588,3384.6,3384.4,43.17850055]
[1735593936849,0.29588,3384.6,3384.4,43.47439055]
[1735593937046,0.29588,3384.7,3384.5,0.29589]
[1735593937245,5.49851566,3384.8,3384.4,43.17850055]
[1735593937443,5.49851566,3384.8,3384.7,2.67437055]
[1735593938240,5.49851566,3384.8,3384.4,43.17850055]
[1735593938241,3.2078,3384.8,3384.4,43.17850055]
[1735593938439,3.2078,3384.8,3384.4,43.47439055]
[1735593938646,0.29589,3384.5,3384.4,43.47439055]
[1735593938843,0.29588,3384.6,3384.4,43.47439055]
[1735593939350,3.2078,3384.8,3384.4,43.47439055]
[1735593939551,0.29588,3384.6,3384.4,43.17850055]
[1735593940445,0.29588,3384.7,3384.4,43.47440055]
[1735593940653,0.29588,3384.6,3384.4,43.47440055]
[1735593942744,0.29588,3384.7,3384.4,43.47440055]
[1735593943557,3.2078,3384.8,3384.4,43.47440055]
[1735593943858,0.29588,3384.6,3384.4,43.47440055]
[1735593944757,0.29588,3384.6,3384.4,43.17850055]
[1735593945155,0.29588,3384.6,3384.4,43.47439055]
[1735593946359,3.2078,3384.5,3384.4,43.47439055]
[1735593950757,3.2078,3384.5,3384.4,43.17850055]
[1735593951261,3.2078,3384.5,3384.4,43.47440055]
[1735593954168,3.2078,3384.5,3384.2,1.197]
[1735593954354,3.50369,3384.5,3384.3,0.2959]
[1735593954550,3.2078,3384.5,3384.3,0.2959]
[1735593955663,3.50369,3384.5,3384.3,0.2959]
[1735593956160,3.2078,3384.5,3384.2,1.197]
[1735593956361,3.2078,3384.5,3384.4,0.2959]
[1735593957560,3.2078,3384.5,3384.2,1.197]
[1735593957871,0.2959,3384.4,3384.2,1.197]
[1735593958161,3.50369,3384.5,3384.3,0.2959]
[1735593958563,3.50369,3384.5,3384.4,0.2959]
[1735593959987,3.2078,3384.5,3384.4,2.67440055]
[1735593961571,3.2078,3384.9,3384.4,2.37850055]
[1735593961864,3.2078,3384.9,3384.6,0.29587]
[1735593961865,0.29588,3384.7,3384.6,0.29587]
[1735593962261,3.2078,3384.9,3384.5,0.6433]
[1735593962262,0.29588,3384.6,3384.5,0.6433]
[1735593962669,0.29588,3384.6,3384.5,0.93919]
[1735593963265,0.29588,3384.6,3384.5,0.6433]
[1735593963469,0.29588,3384.6,3384.5,0.93919]
[1735593965272,0.29588,3384.6,3384.5,0.6433]
[1735593965571,0.29588,3384.6,3384.5,0.93919]
[1735593965978,0.29597,3383.7,3383.6,0.29596]
[1735593966167,3.2078,3383.7,3383.1,0.6442]
[1735593966361,0.6433,3383.6,3383.1,0.6442]
[1735593966569,0.29599,3383.3,3383.1,0.94021]
[1735593967066,3.2078,3383.2,3383.1,0.9402]
[1735593968074,0.29598,3383.5,3383.2,0.29599]
[1735593968275,0.29598,3383.5,3383.2,1.48599]
[1735593968773,0.29598,3383.5,3383.2,1.19]
[1735593969072,0.29598,3383.5,3383.2,0.296]
[1735593969382,0.29598,3383.5,3383.2,1.486]
[1735593969770,0.29598,3383.5,3383.2,1.19]
[1735593969978,0.29598,3383.5,3383.3,0.29599]
[1735593970971,0.29598,3383.5,3383.2,1.19]
[1735593971170,0.29599,3383.4,3383.2,1.19]
[1735593971373,0.29599,3383.3,3383.2,1.19]
[1735593971969,4.4848,3383.6,3383.1,0.6442]
[1735593972272,3.2078,3383.2,3383.1,0.6442]
[1735593972467,3.2078,3383.2,3382.1,1.19]
[1735593972676,0.29605,3382.7,3382.5,0.29606]
[1735593972975,3.2078,3382.8,3382.3,0.29608]
[1735593972976,0.29606,3382.5,3382.3,0.29608]
[1735593973277,0.29606,3382.6,3382.3,2.67458055]
[1735593973677,0.90185,3382.7,3382.4,0.29607]
[1735593973868,0.6058,3382.7,3382.3,2.37850055]
[1735593974081,0.29609,3382.3,3382.1,1.8677]
[1735593974274,0.29609,3382.3,3381.4,9.2634714]
[1735593974275,3.2078,3382.4,3381.6,2.37850055]
[1735593974475,3.2078,3381.9,3381.7,41.09613]
[1735593974677,3.2078,3381.9,3381.8,0.29612]
[1735593974977,3.2078,3382.3,3381.7,40.8]
[1735593975176,3.2078,3382.3,3382.1,2.37850055]
[1735593975576,3.2078,3382.3,3382.2,0.29609]
[1735593975769,3.2078,3382.3,3382.2,2.09339]
[1735593976178,2.29071566,3382.7,3382.6,0.29605]
[1735593976378,2.29071566,3382.7,3382.6,2.67455055]
[1735593976689,2.29071566,3382.7,3382.6,43.47455055]
[1735593977379,3.2078,3382.8,3382.7,0.29605]
[1735593979882,3.2078,3382.8,3382.6,40.8]
[1735593980085,3.2078,3382.8,3382.7,2.67454055]
[1735593980885,3.2078,3382.8,3382.7,0.29604]
[1735593981184,3.2078,3382.8,3382.4,2.37850055]
[1735593981185,3.2078,3382.8,3382.6,0.29605]
[1735593981882,3.2078,3382.8,3382.7,0.29604]
[1735593982079,3.2078,3382.8,3382.5,40.8]
[1735593982284,3.2078,3382.8,3382.7,0.29604]
[1735593982680,0.29605,3382.7,3382.4,2.67457055]
[1735593983080,3.2078,3382.8,3382.4,2.37850055]
[1735593983381,0.29605,3382.7,3382.4,2.67457055]
[1735593984081,3.2078,3382.8,3382.3,1.191]
[1735593984279,3.2078,3382.4,3382.3,0.29608]
[1735593984484,3.2078,3382.4,3382.2,1.2021]
[1735593984786,3.2078,3382.4,3382.3,0.29608]
[1735593993986,3.2078,3382.4,3382.3,1.48708]
[1735594004104,3.2078,3382.8,3382.7,0.29604]
[1735594008412,2.29071566,3383.0,3382.9,0.29603]
[1735594008603,2.29071566,3383.0,3382.9,2.67453055]
[1735594009307,2.29071566,3383.0,3382.9,44.07653055]
[1735594009911,3.2078,3383.3,3383.2,0.296]
[1735594010108,3.2078,3383.3,3383.2,3.86550055]
[1735594010611,3.2078,3383.3,3383.2,1.487]
[1735594010911,3.2078,3383.3,3383.2,3.86550055]
[1735594014010,3.2078,3383.3,3383.2,2.67450055]
[1735594014217,3.2078,3383.3,3382.9,2.37850055]
[1735594014412,3.2078,3383.3,3383.1,1.191]
[1735594014601,3.5038,3383.3,3383.1,1.191]
[1735594014915,5.79451566,3383.3,3383.1,1.191]
[1735594015511,5.49851566,3383.3,3383.1,1.191]
[1735594015715,5.49851566,3383.3,3383.2,2.67450055]
[1735594016016,7.80247848,3383.3,3383.2,2.67450055]
[1735594016912,7.80247848,3383.3,3383.2,3.24760055]
[1735594017221,6.6617686,3383.3,3383.2,4.46430055]
[1735594017515,3.4539686,3383.3,3383.2,4.46430055]
[1735594017710,1.8939686,3383.3,3383.2,7.67210055]
[1735594017909,1.8939686,3383.3,3383.2,12.67210055]
[1735594018107,1.8939686,3383.3,3383.2,3.5038]
[1735594018813,0.5951,3383.4,3383.2,3.5038]
[1735594018814,0.5951,3383.4,3383.3,0.29599]
[1735594019207,0.5951,3383.4,3383.3,2.67449055]
[1735594020322,2.30254215,3383.5,3383.4,0.29598]
[1735594020706,2.30254215,3383.5,3383.4,0.89618]
[1735594020908,2.30254215,3383.5,3383.4,41.69618]
[1735594021418,2.30254215,3383.6,3383.5,0.29598]
[1735594022615,0.5934,3383.8,3383.4,41.4002]
[1735594022812,0.5934,3383.8,3383.6,0.29596]
[1735594023821,0.5934,3383.8,3383.4,41.4002]
[1735594024120,0.5934,3383.8,3383.7,0.29596]
[1735594027522,2.89455366,3383.8,3383.7,0.29596]
[1735594029124,0.5934,3383.8,3383.7,0.29596]
[1735594030125,5.50895366,3383.9,3383.8,0.29595]
[1735594032024,5.50895366,3383.9,3383.6,0.29596]
[1735594032226,5.50895366,3383.9,3383.5,0.586]
[1735594032227,0.29596,3383.7,3383.5,0.29597]
[1735594032530,0.5846,3383.6,3383.4,0.29598]
[1735594032725,3.2078,3383.5,3383.2,1.19]
[1735594032930,3.7791,3383.5,3383.3,0.29599]
[1735594033228,3.7791,3383.5,3383.4,0.29598]
[1735594034328,6.0798401,3383.5,3383.4,0.29598]
[1735594035228,6.0798401,3383.5,3383.0,43.17850055]
[1735594035429,0.29599,3383.4,3383.1,0.29601]
[1735594036738,6.0798401,3383.5,3383.0,3.56850055]
[1735594036942,3.2078,3383.1,3383.0,3.86452055]
[1735594039333,3.2078,3383.1,3383.0,0.29602]
[1735594039532,3.2078,3383.1,3382.9,0.29602]
[1735594039834,0.5831,3383.0,3382.9,0.29602]
[1735594041646,0.5831,3383.0,3382.8,1.19]
[1735594041647,3.2078,3383.1,3382.8,1.19]
[1735594041936,3.2078,3383.1,3383.0,0.29602]
[1735594042339,3.2078,3383.1,3383.0,41.09602]
[1735594043339,3.2078,3383.1,3383.0,0.29602]
[1735594043838,3.2078,3383.1,3383.0,41.09602]
[1735594044039,3.2078,3383.1,3383.0,0.29602]
[1735594049442,3.2078,3383.1,3382.7,0.29604]
[1735594049443,0.29604,3382.8,3382.7,0.29604]
[1735594050141,7.37850055,3382.8,3382.4,0.00174294]
[1735594050340,3.2078,3382.5,3382.2,5.33235824]
[1735594050644,0.29608,3382.3,3382.2,4.38425824]
[1735594050839,0.29608,3382.3,3381.1,3.00120055]
[1735594050840,8.2078,3382.5,3381.7,9.2634714]
[1735594051045,3.50392,3381.8,3381.7,9.5596014]
[1735594051238,3.50392,3381.8,3381.7,9.2634714]
[1735594052343,0.29614,3381.7,3381.6,0.29614]
[1735594052738,0.29614,3381.6,3381.5,41.09615]
[1735594053145,0.29614,3381.6,3381.5,40.8]
[1735594053347,0.29614,3381.6,3381.5,41.09615]
[1735594053540,2.59457781,3381.7,3381.6,0.29614]
[1735594053741,0.29614,3381.6,3381.5,41.09615]
[1735594054045,2.59457781,3381.7,3381.6,0.29614]
[1735594054246,2.59457781,3381.7,3381.6,0.88234]
[1735594054446,2.59457781,3381.7,3381.6,0.5862]
[1735594054649,0.29614,3381.7,3381.6,0.88234]
[1735594054847,0.29614,3381.7,3381.6,0.5862]
[1735594055353,0.29614,3381.6,3381.5,41.09615]
[1735594056351,0.29614,3381.6,3381.5,40.8]
[1735594056542,3.2078,3381.8,3381.5,40.8]